Cogmind - Beta 15 @@@ ROGUE MODE // 2025.08.29 @ 16:53:34 Player: beans Result: Destroyed by Y-54 Guardian with Gatling Laser Performance ------------- Evolutions (3) 1500 Regions Visited (4) 800 Robots Destroyed (87) 435 Value Destroyed (2020) 2020 Prototype IDs (2) 40 Alien Tech Used (0) 0 Bonus (138) 138 TOTAL SCORE: 4933 Bonus ------- High Alert Combat Kills 138 Cogmind --------- Core Integrity 0/700 Matter 74/300 Energy 100/100 System Corruption 0% Temperature Cool (6) Movement Core (100) Ox1 Location -7/Factory Parts ------- > --- POWER (1) -------- (None) > --- PROPULSION (2) --- (None) > --- UTILITY (6) ------ Hacking Suite > --- WEAPON (4) ------- Rocket Launcher > --- INVENTORY (5) ---- Armor Integrity Analyzer Improved Field Recycling Unit (0) Rocket Launcher Rocket Launcher Peak State ------------ > --- POWER ------------ Light Deuterium Engine > --- PROPULSION ------- Advanced Treads Advanced Treads > --- UTILITY ---------- Heat Sink Improved Weapon Shielding Hardened Medium Armor Plating Component Analysis Suite > --- WEAPON ----------- Medium Laser Medium Laser Particle Gun > --- INVENTORY -------- Improved Light Cannon Grenade Launcher Improved Grenade Launcher Improved Grenade Launcher Datajack [Rating: 25] Favorites ----------- Power Improved Ion Engine Engine Improved Ion Engine Power Core Light Nuclear Core Propulsion Light Treads Treads Light Treads Hover Unit Gravmag System Utility Heat Sink Device Heat Sink Hackware Hacking Suite Protection Improved Weapon Shielding Weapon Medium Laser Energy Gun Medium Laser Ballistic Gun Precision Assault Rifle Ballistic Cannon Improved Light Cannon Launcher Improved Grenade Launcher Impact Weapon Maul Special Melee Weapon Datajack Build | -11 -10 -9 -8 -7 ------- Run | Yrd Mat Mat Mat Fac Slots Evolved 6 | . . 2 2 2 Power . | . . . . . Propulsion . | . . . . . Utility 4 | . . 1 1 2 Weapon 2 | . . 1 1 . Parts Attached 36 | 3 8 2 17 6 Power 7 | . 1 1 5 . Engine 6 | . 1 1 4 . Core 1 | . . . 1 . Reactor . | . . . . . Propulsion 7 | 2 . . 3 2 Treads 5 | 2 . . 3 . Leg . | . . . . . Wheel . | . . . . . Hover 2 | . . . . 2 Flight . | . . . . . Utility 7 | . 2 . 4 1 Device 4 | . 2 . 1 1 Storage . | . . . . . Processor . | . . . . . Hackware 1 | . . . 1 . Protection 2 | . . . 2 . Artifact . | . . . . . Weapon 15 | 1 5 1 5 3 Energy Gun 6 | 1 3 1 1 . Energy Cannon . | . . . . . Ballistic Gun 1 | . . . . 1 Ballistic Cannon 1 | . . . 1 . Launcher 5 | . 1 . 2 2 Special Weapon . | . . . . . Impact Weapon 1 | . . . 1 . Slashing Weapon . | . . . . . Piercing Weapon . | . . . . . Special Melee Weapon 1 | . 1 . . . Unidentified Prototypes 2 | . . . 1 1 Parts Lost 20 | . . 1 15 4 Power 3 | . . . 3 . Propulsion 5 | . . . 3 2 Utility 5 | . . 1 4 . Weapon 7 | . . . 5 2 Highest Loss Streak 4 | . . 1 4 2 To Critical Strikes . | . . . . . Average Backups 4 | . 2 4 4 4 Power . | . . . . . Propulsion . | . . . . . Utility . | . . . . . Weapon 3 | . 2 3 4 4 Tool/Special . | . . . . . Unused Backups 6 | 1 1 . 1 3 Power . | . . . . . Propulsion . | . . . . . Utility 1 | . . . . 1 Weapon 5 | 1 1 . 1 2 Tool/Special . | . . . . . Average Slot Usage (%) 61 | . 61 84 68 20 Engine 5 | . 2 11 5 . Core 1 | . . . 3 . Treads 16 | . 28 22 16 . Device 11 | . 4 18 14 3 Hackware 2 | . . . 3 7 Protection 2 | . . . 4 . Energy Gun 16 | . 22 32 13 . Launcher 2 | . 1 . 5 1 Impact Weapon 1 | . . . 1 3 Peak Build Rating 25 | 3 7 10 25 18 Average Rating 12 | 2 4 9 18 9 On Entrance 5 | . 3 7 9 6 Naked Turns . | . . . . . Heaviest Build 26 | 1 9 16 26 15 Greatest Support 44 | 40 40 40 44 18 Greatest Overweight (x) 5 | . . . 5 4 Average Overweight (x) . | . . . . 1 Largest Inventory Capacity 5 | 5 5 5 5 5 Average Capacity 5 | 5 5 5 5 5 Most Carried 5 | 2 5 5 5 5 Average Carried 4 | . 2 4 4 4 Final Capacity 5 | 5 5 5 5 5 Final Carried 5 | . 4 5 5 4 Class Distribution -------------------- 52% | Mutant 34% | Gunner 13% | Tank Dominant Class ---------------- Mutant | -10/Materials Gunner | -9/Materials Mutant | -8/Materials Mutant | -7/Factory Resources | -11 -10 -9 -8 -7 ----------- Run | Yrd Mat Mat Mat Fac Matter Collected 1212 | 179 151 70 497 315 Remotely . | . . . . . Salvage Created 2197 | . 272 448 1020 457 Parts 113 | . 16 27 55 15 Haulers Intercepted 2 | . . . 2 . Recyclers Shooed 3 | 1 . . 2 . Parts Field Recycled 1 | . . . . 1 Retrieved Matter . | . . . . . Parts Self-Destructed . | . . . . . Prevented . | . . . . . Kills | -11 -10 -9 -8 -7 ------- Run | Yrd Mat Mat Mat Fac Combat Hostiles Destroyed 48 | . 7 4 30 7 Melee 1 | . . . . 1 Guns 13 | . 4 4 5 . Cannons 4 | . . . 4 . AOE 29 | . 3 . 20 6 Classes Destroyed 12 | . 5 3 4 . Worker 7 | . 1 4 1 1 Builder 14 | . 3 4 7 . Tunneler 1 | . . . 1 . Hauler 2 | . . . 2 . Recycler 10 | . 1 1 4 4 Operator 1 | . . . 1 . Watcher 4 | . . 1 2 1 Swarmer 15 | . 3 . 8 4 Grunt 24 | . 4 2 16 2 Duelist 1 | . . 1 . . Sentry 6 | . . 1 4 1 Hunter 2 | . . . 2 . Best Kill Streak 8 | . 6 6 8 5 Combat Bots Only 5 | . 3 1 5 3 Max Kills in Single Turn 3 | . 3 1 3 3 Gunslinging . | . . . . . Exploded 3 | . 1 . 3 2 Melee 1 | . . . . 1 Uniques/NPCs Destroyed . | . . . . . Combat | -11 -10 -9 -8 -7 -------- Run | Yrd Mat Mat Mat Fac Hostile Shots Fired 387 | . 27 15 161 184 Missed 137 | . 9 5 47 76 Hits 250 | . 18 10 114 108 Melee 6 | . . 6 . . Projectile 244 | . 18 4 114 108 Critical Strikes 11 | . . 1 7 3 Damage Taken 3590 | . 256 239 1932 1163 Core 1178 | . 23 31 416 708 Absorbed by Shields . | . . . . . Redirected to Shielding 107 | . . . 107 . Core Remaining (%) 76 | 100 90 92 24 . Volleys Fired 198 | 2 20 49 100 27 Largest 4 | 1 2 3 4 1 Hottest 215 | 40 100 165 215 36 Shots Fired 358 | 2 36 144 149 27 Gun 274 | 2 32 144 85 11 Cannon 19 | . . . 19 . Launcher 65 | . 4 . 45 16 Special . | . . . . . Kinetic 30 | . . . 19 11 Thermal 262 | 2 32 144 84 . Explosive 65 | . 4 . 45 16 Electromagnetic 1 | . . . 1 . Robot Hit Streak 24 | . 12 8 24 8 Robot Miss Streak 5 | 2 3 5 3 4 Penetration Max . | . . . . . Secondary Targets 2 | . 1 1 . . Max Gunslinging Chain 1 | . 1 1 . . Shots Hit Robots 186 | . 26 50 87 23 Core Hits 149 | . 18 20 89 22 Critical Kills . | . . . . . Critical Parts Destroyed 1 | . . . . 1 Critical Strikes 8 | . . 2 5 1 Burn 5 | . . 2 3 . Blast 2 | . . . 2 . Smash 1 | . . . . 1 Melee Attacks 20 | . 6 . 3 11 Impact 14 | . . . 3 11 Slashing . | . . . . . Piercing . | . . . . . Sneak Attacks 6 | . 3 . . 3 Combat Hostiles 1 | . . . . 1 Follow-up Attacks . | . . . . . Damage Inflicted 8246 | . 690 653 5096 1807 Guns 1795 | . 230 653 705 207 Cannons 360 | . . . 360 . Explosions 5544 | . 460 . 3899 1185 Melee 547 | . . . 132 415 Ramming . | . . . . . Kinetic 567 | . . . 360 207 Thermal 1588 | . 230 653 705 . Explosive 5544 | . 460 . 3899 1185 Electromagnetic . | . . . . . Impact 547 | . . . 132 415 Slashing . | . . . . . Piercing . | . . . . . Highest Corruption 1 | . 1 . . . Average Corruption 1 | . 1 . . . Corruption Purged . | . . . . . Corruption Blocked . | . . . . . Effects 2 | . 2 . . . Data Loss (minor) 1 | . 1 . . . Data Loss (major) 1 | . 1 . . . Overload Shots . | . . . . . Overflow Damage 221 | . 10 . 136 75 Projectiles . | . . . . . Explosions 160 | . 10 . 136 14 Melee 61 | . . . . 61 Knockbacks 4 | . . . 4 . Impact 2 | . . . 2 . Kinetic 2 | . . . 2 . Secondary . | . . . . . Self-Inflicted Damage 296 | . 88 . 135 73 Shots 12 | . 3 . 5 4 Rammed . | . . . . . Targets Rammed . | . . . . . Kicked . | . . . . . Crushed . | . . . . . Highest Temperature 408 | . 60 345 408 7 Average Temperature 67 | . 15 60 93 7 Received Heat Transfer 1044 | . 54 24 594 372 Effects 6 | . . 1 5 . Shutdowns 1 | . . 1 . . Energy Bleed 1 | . . . 1 . Interference 3 | . . . 3 . Short Circuit 1 | . . . 1 . Siege Activations . | . . . . . Martial Activations . | . . . . . Shielding Activations . | . . . . . Robots Disrupted . | . . . . . Combat Hostiles . | . . . . . Robots Corrupted . | . . . . . Combat Hostiles . | . . . . . Parts Fried . | . . . . . Impact Corruptions 1 | . . . . 1 Robots Melted 1 | . . . 1 . Combat Hostiles 1 | . . . 1 . Parts Melted 9 | . 1 3 5 . Heat Transferred 4705 | . 560 1999 2146 . Parts Sabotaged . | . . . . . Parts Stolen . | . . . . . Parts Stripped . | . . . . . Power Chain Reactions . | . . . . . Alert | -11 -10 -9 -8 -7 ------- Run | Yrd Mat Mat Mat Fac Maximum Alert Level 3 | . . . 3 2 Low Security (%) 59 | 100 100 100 44 18 Level 1 17 | . . . 8 79 Level 2 15 | . . . 32 1 Level 3 6 | . . . 14 . Level 4 . | . . . . . Level 5 . | . . . . . High Security . | . . . . . Max Security . | . . . . . Peak Influence 737 | . 139 87 737 415 Initial 287 | . . 48 22 287 Average 211 | . 52 31 335 251 Influence Increases 1917 | . 224 187 1118 388 Destroy 0b10 Robot/C 960 | . 140 80 600 140 Destroy 0b10 Robot/NC 195 | . 25 50 90 30 Destroy Leader 222 | . 20 42 138 22 Disable Machine 75 | . 15 . 30 30 Destroy Structure 255 | . 24 . 155 76 Partial Spotted 60 | . . . 15 45 Lose Combat Pursuer 150 | . . 15 90 45 Influence Decreases 1504 | . 110 247 541 606 Entered New Map 442 | . . 66 32 344 Time Decay 862 | . 110 171 359 222 Lost Part 200 | . . 10 150 40 Squads Dispatched 12 | . 1 2 6 3 Investigation 3 | . 1 1 1 . Extermination . | . . . . . Reinforcement 9 | . . 1 5 3 Assault . | . . . . . Garrison . | . . . . . Intercept . | . . . . . Searches Triggered . | . . . . . Construction Impeded 4 | . . 1 2 1 Haulers Reinforced 1 | . . . . 1 Active Scanning Responses . | . . . . . Cargo Convoy Interrupts . | . . . . . Stealth | -11 -10 -9 -8 -7 --------- Run | Yrd Mat Mat Mat Fac Distress Signals 8 | . . 1 6 1 Communications Jammed . | . . . . . Distress Signals . | . . . . . Times Spotted 80 | . 8 7 50 15 Peak Tracking Total 7 | . 3 2 7 5 Tactical Retreats 8 | . . 1 6 1 Traps | -11 -10 -9 -8 -7 ------- Run | Yrd Mat Mat Mat Fac Traps Triggered 5 | . 2 1 1 1 Indirectly . | . . . . . Trap Hack Attempts . | . . . . . Triggered . | . . . . . Disarmed . | . . . . . Reprogrammed . | . . . . . Reused . | . . . . . Traps Extracted . | . . . . . Installed . | . . . . . Triggered . | . . . . . Machines | -11 -10 -9 -8 -7 ---------- Run | Yrd Mat Mat Mat Fac Machines Disabled 5 | . 1 . 2 2 Max in Single Turn 1 | . 1 . 1 1 Machines Repaired . | . . . . . Machines Dismantled . | . . . . . Machines Sabotaged . | . . . . . Overloaded Fab Kills . | . . . . . Hacking | -11 -10 -9 -8 -7 --------- Run | Yrd Mat Mat Mat Fac Machines Accessed 2 | . . . . 2 Terminals 1 | . . . . 1 Fabricators . | . . . . . Repair Stations . | . . . . . Recycling Units 1 | . . . . 1 Scanalyzers . | . . . . . Garrison Access . | . . . . . Total Hacks 3 | . . . . 3 Successful 1 | . . . . 1 Failed 2 | . . . . 2 Catastrophic . | . . . . . Database Lockouts . | . . . . . Manual . | . . . . . Terminals 1 | . . . . 1 Fabricators . | . . . . . Repair Stations . | . . . . . Recycling Units 2 | . . . . 2 Scanalyzers . | . . . . . Garrison Access . | . . . . . Terminal Hacks 1 | . . . . 1 Open DSF 1 | . . . . 1 Fabricator Hacks . | . . . . . Repair Station Hacks . | . . . . . Recycling Unit Hacks . | . . . . . Scanalyzer . | . . . . . Garrison Access Hacks . | . . . . . Unauthorized Hacks . | . . . . . Terminals . | . . . . . Fabricators . | . . . . . Repair Stations . | . . . . . Recycling Units . | . . . . . Scanalyzers . | . . . . . Garrison Access . | . . . . . Data Cores Recovered . | . . . . . Used . | . . . . . Hacking Detections 1 | . . . . 1 Full Trace Events . | . . . . . Feedback Events . | . . . . . Feedback Blocked . | . . . . . Robot Schematics Acquired . | . . . . . Robots Built . | . . . . . Authchips . | . . . . . Time . | . . . . . Total Robot Build Rating . | . . . . . Part Schematics Acquired . | . . . . . Parts Built . | . . . . . Authchips . | . . . . . Time . | . . . . . Total Part Build Rating . | . . . . . Parts Repaired . | . . . . . Time . | . . . . . Parts Recycled . | . . . . . Recycled Matter . | . . . . . Retrieved Matter . | . . . . . Retrieved Components . | . . . . . Parts Scanalyzed . | . . . . . Part Schematics Acquired . | . . . . . Parts Damaged . | . . . . . Bothacking | -11 -10 -9 -8 -7 ------------ Run | Yrd Mat Mat Mat Fac Used RIF Installer . | . . . . . Robots Hacked 1 | . 1 . . . Non-combat 1 | . 1 . . . Combat . | . . . . . Robot Hacks Applied 1 | . 1 . . . parse_system 1 | . 1 . . . Relay Couplers Released . | . . . . . Fabnet Peak Effective % . | . . . . . Robots Rewired . | . . . . . Allies Hacked . | . . . . . Hacks Repelled . | . . . . . Allies | -11 -10 -9 -8 -7 -------- Run | Yrd Mat Mat Mat Fac Total Allies . | . . . . . Largest Group . | . . . . . Highest-Rated Group . | . . . . . Highest-Rated Ally . | . . . . . Total Orders . | . . . . . Ally Attacks . | . . . . . Total Damage . | . . . . . Kills . | . . . . . Allies Corrupted . | . . . . . Allies Melted . | . . . . . Intel | -11 -10 -9 -8 -7 ------- Run | Yrd Mat Mat Mat Fac Active Infowar (turns) . | . . . . . Robot Analysis Total . | . . . . . Derelict Logs Recovered . | . . . . . Drone Launches . | . . . . . Drone Recoveries . | . . . . . Exploration | -11 -10 -9 -8 -7 ------------- Run | Yrd Mat Mat Mat Fac Turns Passed 2607 | 55 378 518 1193 463 Spaces Moved 1293 | 34 172 205 593 289 Core 262 | 9 . . 4 249 Treads 991 | 25 172 205 589 . Legs . | . . . . . Wheels . | . . . . . Hover 40 | . . . . 40 Flight . | . . . . . Fastest Speed 50 | 50 160 160 50 50 Average Speed 143 | 130 160 160 146 116 Slowest Speed 300 | 160 160 160 300 250 Overloaded Moves . | . . . . . Propulsion Burnouts . | . . . . . Robots Hopped . | . . . . . Potential Cave-ins . | . . . . . Cave-ins Triggered . | . . . . . Exploration Rate (%) 26 | 4 38 24 54 10 Regions Visited 4 Branch Regions . Pre-discovered Areas . | . . . . . Known Exits Taken . | . . . . . Unknown Exits Taken 4 | 1 1 1 1 . Scrap Searched . | . . . . . Spaces Dug 71 | . . . 41 30 Terrain Destroyed 292 | . 26 . 181 85 Melee . | . . . . . Projectile . | . . . . . AOE 292 | . 26 . 181 85 Terrain Rammed . | . . . . . Walls Destroyed . | . . . . . Machines Disabled . | . . . . . Actions | -11 -10 -9 -8 -7 --------- Run | Yrd Mat Mat Mat Fac Total 1706 | 43 235 286 775 367 Wait 111 | . 18 21 46 26 Move 1289 | 33 171 204 592 289 Hop . | . . . . . Pick Up 27 | 4 9 4 7 3 Fast Attach 17 | . 1 1 11 4 Attach 18 | 3 4 3 5 3 Detach 3 | . 1 1 1 . Swap 5 | . 3 1 1 . Drop 18 | 1 2 2 9 4 Fire 198 | 2 20 49 100 27 Melee 20 | . 6 . 3 11 Ram . | . . . . . Kick . | . . . . . Crush . | . . . . . Escape Stasis . | . . . . . Rewire . | . . . . . Trap . | . . . . . Miscellaneous . | . . . . . Route ------- -11/Scrapyard -10/Materials -9/Materials -8/Materials -7/Factory History --------- Turn | Location | Event 20 | -11/Scrapyard | Discovered new exit (range 15) 56 | -11/Scrapyard | Entered Materials 312 | -10/Materials | Build established: Mutant 396 | -10/Materials | Discovered new exit (range 6) 434 | -10/Materials | Entered another Materials area 434 | -9/Materials | Evolved 2 slots: Utility x1, Weapon x1 733 | -9/Materials | Build established: Gunner 937 | -9/Materials | Discovered new exit (range 9) 952 | -9/Materials | Entered another Materials area 952 | -8/Materials | Evolved 2 slots: Utility x1, Weapon x1 1599 | -8/Materials | Lost 3 parts (1p1u1w) 1835 | -8/Materials | Lost 4 parts (1n1u2w) 2090 | -8/Materials | Build established: Mutant 2111 | -8/Materials | Discovered new exit (range 12) 2134 | -8/Materials | Core integrity fell below 50% 2145 | -8/Materials | Entered Factory 2145 | -7/Factory | Evolved 2 slots: Utility x2 2174 | -7/Factory | Lost 4 parts (1p2n1u) 2501 | -7/Factory | Core integrity fell below 50% 2575 | -7/Factory | Core integrity fell below 20% 2608 | -7/Factory | Destroyed by Y-54 Guardian with Gatling Laser Last Messages --------------- U-05 Engineer lays Concrete. A-02 Transporter calls for reinforcements. ALERT: Hostile activity reported, dispatching reinforcements to area. Terminal disabled. K-01 Serf cleans the Megafabricator. K-01 Serf cleans the Terminal. U-05 Engineer lays Concrete. W-25 Informer destroyed. ALERT: Construction progress impeded, dispatching reinforcements to local area. K-01 Serf cleans the Terminal. Destroyed Welding Torch. R-06 Scavenger destroyed. K-01 Serf cleans the Megafabricator. K-01 Serf cleans the Terminal. K-01 Serf cleans the Megafabricator. K-01 Serf collects debris. Destroyed Aluminum Leg. K-01 Serf cleans the Megafabricator. Map ----- +----------------------------------------------------+ | ?????????????????????????????????????????????????? | | ????????????????????????????????????????????????# | | ???????????????????????????????????#????????????# | | ?????????????????????????????????? ?? ?????????# | | ??????????????????????????????????" ??"?????????# | | ??????????????????????????????????" " "???#?????# | | ??????????????????????????????#?"?" " "?" # ??# | | ??????????????????????????????# " " " " " # ?# | | ??????????????????????????????# " " " " " # ## | | ???????????????????????######## " " " " " # ## | | ???????????????????????# # " " " " " # | | ???????????????????????# """ # " " " " " # | | ???????????????????????# """ # " " " " " # | | ???????????????????????# """ # + " " " | | ???????????????????????# # # " " " | | ?????????????????? ???# """ #! !# " " " | | ??????????????????? ???# """ ######+###### " " " | | ??????????????????? ??# """ #????# " " " | | ??????????????????? ?# ###### " " " | | ????????????????"" """?# """ + """ " " " | | ???????????????""" """ # """ ###### """ " " " | | ??????????? """ """ # """ #????# """ " " " | | ??????????? #????# | | ?????????? k ########## k | | ?????????? p a Y " " "" "" | | ?????????? g @ k "T" ""R"" | | ?????????? % """ """" | | ?????????? [% "" | | ??????????? "T | | ??????????? "" r#######u### #+ | | ???????????? #### "" k#?? [%# [ | | ????????????""?????# # * % | | ???????????????????# # "" % ]] | | ???????????????????#? # """ ]] | | ????????????????????? k # "" ]% | | ????????????????????? #???"" | | ????????????????????? """""" #???" " | | ??????????????????????"""""" #?? """" ] | | ????????????????????????????ko #?? # ##### | | ????????????????????????????? ???????##### #???? | | ?????????????????????????????????????????####????? | | ?????????????????????????????????????????????????? | | ?????????????????????????????????????????????????? | | ?????????????????????????????????????????????????? | | ?????????????????????????????????????????????????? | | ?????????????????????????????????????????????????? | | ?????????????????????????????????????????????????? | | ?????????????????????????????????????????????????? | | ?????????????????????????????????????????????????? | | ?????????????????????????????????????????????????? | +----------------------------------------------------+ Best States ------------- Heat Dissipation 48 Energy Generation 14 Energy Capacity 265 Matter Stores 300 Matter Capacity 300 Sight Range 16 Terrain Scan Density 10 Armor Coverage 225 Weapon Shielding 66 Evasion (%) 53 Recoil Reduction 2 Offensive Hacking 10 Item Schematics ----------------- None Robot Schematics ------------------ None Fabricated ------------ Nothing Repaired ---------- Nothing Alien Tech Used ----------------- None Achievements -------------- None Challenges ------------ None Game ------ Seed SuperquantumMetafiberPlating Manual? 0 Play Time 00:22:27 Cumulative 111.9 hours Start 2025.08.29 @ 14:08:13 End 2025.08.29 @ 16:53:34 Sessions 1 Manual Loads 0 Difficulty Rogue Special Mode None Game No. 413 Rogue 413 Adventurer 0 Explorer 0 Win Type - Total 0 Types 0/0/0/0/0/0/0/0/0/0 Lore% 44 Gallery% 43 Achievement% 31 Wizard Run 0 Options --------- Layout 2 ASCII 0 Keyboard 0 Movement Mouse Keybinds 0 Fullscreen 2 Font 24/Smallcaps Map View 50x44 Zoom Use 0% Tactical HUD 0 Map Filters NONE Filters NONE Steam 1 RUN: cb6176ec-6f02-4c6d-9cd5-4a8a60c35698